fUST/lending_fUST_20241119
["ID","MTS","AMOUNT","RATE_DAILY","PERIOD"]
[342556522,1731963039960,-500.0,0.00023643,2]
[342556524,1731963039970,-500.0,0.00023643,2]
[342556526,1731963039983,-500.0,0.00023643,2]
[342556528,1731963039992,-500.0,0.00023643,2]
[342556530,1731963040001,-500.0,0.00023643,2]
[342556532,1731963040010,-500.0,0.00023673,2]
[342556533,1731963040019,-588.66035476,0.00023673,2]
[342556535,1731963040029,-500.0,0.00023673,2]
[342556537,1731963040039,-500.0,0.00023673,2]
[342556539,1731963040049,-500.0,0.00023673,2]
[342556541,1731963040059,-500.0,0.00023673,2]
[342556543,1731963040071,-1255.47502474,0.0002373,2]
[342556545,1731963040080,-501.29771105,0.00023815,2]
[342556547,1731963040090,-211.659,0.00023816,5]
[342556548,1731963040100,-691.16628549,0.00023816,2]
[342556550,1731963040110,-234.38798363,0.00023817,2]
[342556552,1731963040119,-420.0,0.00023874,2]
[342556554,1731963040129,-500.0,0.00023896,2]
[342556556,1731963040138,-1799.62,0.00023896,2]
[342556558,1731963040147,-500.0,0.00023896,2]
[342556560,1731963040156,-500.0,0.00023897,2]
[342556562,1731963040168,-417.47,0.00023897,2]
[342556564,1731963040178,-587.29,0.00023897,2]
[342556566,1731963040188,-641.77,0.00023897,2]
[342556568,1731963040196,-990.74,0.00023897,2]
[342556569,1731963040206,-1273.25,0.00023897,2]
[342556571,1731963040216,-500.0,0.00023898,2]
[342556573,1731963040227,-500.0,0.00023898,2]
[342556575,1731963040236,-500.0,0.00023914,2]
[342556577,1731963040246,-500.0,0.00023914,2]
[342556579,1731963040256,-500.0,0.00023914,2]
[342556581,1731963040265,-500.0,0.00023914,2]
[342556583,1731963040275,-500.0,0.00023914,2]
[342556585,1731963040284,-504.97643394,0.00023914,2]
[342556587,1731963040294,-500.0,0.00023914,2]
[342556589,1731963040303,-164.0943915,0.00023914,2]
[342556591,1731963040313,-500.0,0.00023914,2]
[342556592,1731963040323,-500.0,0.00023914,2]
[342556593,1731963040333,-500.0,0.00023914,2]
[342556594,1731963040343,-500.0,0.00023914,2]
[342556595,1731963040354,-500.0,0.00023914,2]
[342556596,1731963040363,-500.0,0.00023914,2]
[342556597,1731963040372,-500.0,0.00023914,2]
[342556598,1731963040382,-536.21,0.00023914,2]
[342556599,1731963040392,-500.0,0.00023914,2]
[342556600,1731963040402,-500.0,0.00023914,2]
[342556601,1731963040414,-500.0,0.00023914,2]
[342556602,1731963040424,-500.0,0.00023914,2]
[342556603,1731963040434,-181.13661412,0.00023914,2]
[342556604,1731963040443,-500.0,0.00023914,2]
[342556605,1731963040453,-500.0,0.00023914,2]
[342556606,1731963040462,-500.0,0.00023914,2]
[342556607,1731963040471,-500.0,0.00023914,2]
[342556608,1731963040481,-500.0,0.00023914,2]
[342556609,1731963040490,-500.0,0.00023914,2]
[342556610,1731963040499,-500.0,0.00023914,2]
[342556611,1731963040508,-484.51377568,0.00023914,2]
[342556612,1731963040518,-500.0,0.00023914,2]
[342556613,1731963040527,-500.0,0.00023914,2]
[342556614,1731963040536,-500.0,0.00023914,2]
[342556615,1731963040546,-500.0,0.00023914,2]
[342556616,1731963040555,-500.0,0.00023914,2]
[342556617,1731963040564,-500.0,0.00023914,2]
[342556618,1731963040573,-500.0,0.00023914,2]
[342556619,1731963040583,-216.7448139,0.00023914,2]
[342556620,1731963040593,-500.0,0.00023914,2]
[342556621,1731963040602,-500.0,0.00023914,2]
[342556622,1731963040612,-500.0,0.00023914,2]
[342556623,1731963040621,-500.0,0.00023914,2]
[342556624,1731963040631,-500.0,0.00023914,2]
[342556625,1731963040641,-500.0,0.00023914,2]
[342556626,1731963040650,-500.0,0.00023914,2]
[342556627,1731963040661,-500.0,0.00023914,2]
[342556628,1731963040671,-500.0,0.00023914,2]
[342556629,1731963040680,-500.0,0.00023914,2]
[342556630,1731963040690,-500.0,0.00023914,2]
[342556631,1731963040700,-500.0,0.00023914,2]
[342556632,1731963040709,-500.0,0.00023914,2]
[342556633,1731963040719,-500.0,0.00023914,2]
[342556634,1731963040728,-500.0,0.00023914,2]
[342556635,1731963040739,-500.0,0.00023914,2]
[342556636,1731963040748,-500.0,0.00023914,2]
[342556637,1731963040757,-500.0,0.00023914,2]
[342556638,1731963040766,-200.0,0.00023915,3]
[342556639,1731963040776,-500.0,0.00023916,2]
[342556640,1731963040786,-500.0,0.00023916,2]
[342556641,1731963040795,-500.0,0.00023916,2]
[342556642,1731963040804,-500.0,0.00023916,2]
[342556643,1731963040814,-500.0,0.00023916,2]
[342556644,1731963040823,-500.0,0.00023916,2]
[342556645,1731963040832,-500.0,0.00023916,2]
[342556646,1731963040841,-500.0,0.00023916,2]
[342556647,1731963040850,-500.0,0.00023916,2]
[342556648,1731963040859,-500.0,0.00023916,2]
[342556649,1731963040869,-500.0,0.00023916,2]
[342556650,1731963040878,-500.0,0.00023916,2]
[342556651,1731963040887,-500.0,0.00023916,2]
[342556652,1731963040897,-500.0,0.00023916,2]
[342556653,1731963040906,-500.0,0.00023916,2]
[342556654,1731963040917,-500.0,0.00023916,2]
[342556655,1731963040926,-500.0,0.00023916,2]
[342556656,1731963040935,-500.0,0.00023916,2]
[342556657,1731963040944,-500.0,0.00023916,2]
[342556658,1731963040954,-500.0,0.00023916,2]
[342556659,1731963040964,-513.86671143,0.00023916,2]
[342556660,1731963040978,-172.41,0.00023916,2]
[342556661,1731963040988,-500.0,0.00023916,2]
[342556662,1731963040997,-500.0,0.00023916,2]
[342556663,1731963041007,-182.7,0.00023916,2]
[342556664,1731963041017,-500.0,0.00023916,2]
[342556665,1731963041027,-500.0,0.00023916,2]
[342556666,1731963041037,-500.0,0.00023916,2]
[342556667,1731963041047,-500.0,0.00023916,2]
[342556668,1731963041056,-500.0,0.00023916,2]
[342556669,1731963041065,-500.0,0.00023916,2]
[342556670,1731963041075,-500.0,0.00023916,2]
[342556671,1731963041087,-500.0,0.00023916,2]
[342556672,1731963041097,-631.58874087,0.00023916,2]
[342556673,1731963041107,-500.0,0.00023916,2]
[342556674,1731963041116,-500.0,0.00023916,2]
[342556675,1731963041126,-500.0,0.00023917,2]
[342556676,1731963041136,-500.0,0.00023917,2]
[342556677,1731963041146,-500.0,0.00023917,2]
[342556678,1731963041155,-500.0,0.00023917,2]
[342556679,1731963041168,-500.0,0.00023917,2]
[342556680,1731963041177,-500.0,0.00023917,2]
[342556682,1731963041186,-500.0,0.00023917,2]
[342556684,1731963041196,-1000.0,0.00023917,2]
[342556685,1731963041205,-500.0,0.00023917,2]
[342556687,1731963041214,-500.0,0.00023917,2]
[342556689,1731963041224,-500.0,0.00023917,2]
[342556691,1731963041234,-500.0,0.00023917,2]
[342556693,1731963041243,-500.0,0.00023917,2]
[342556695,1731963041252,-500.0,0.00023917,2]
[342556697,1731963041262,-268.96063983,0.00023917,2]
[342556699,1731963041271,-500.0,0.00023917,2]
[342556701,1731963041281,-162.93,0.00023917,2]
[342556703,1731963041290,-507.63425325,0.00023917,2]
[342556705,1731963041299,-500.0,0.00023917,2]
[342556707,1731963041308,-500.0,0.00023917,2]
[342556709,1731963041318,-500.0,0.00023917,2]
[342556711,1731963041327,-500.0,0.00023917,2]
[342556713,1731963041337,-500.0,0.00023917,2]
[342556714,1731963041346,-500.0,0.00023917,2]
[342556715,1731963041356,-500.0,0.00023917,2]
[342556716,1731963041365,-500.0,0.00023917,2]
[342556718,1731963041375,-344.59365846,0.00023917,2]
[342556720,1731963041384,-389.61,0.00023917,2]
[342556722,1731963041394,-633.92,0.00023917,2]
[342556724,1731963041403,-505.13,0.00023917,2]
[342556726,1731963041415,-515.71,0.00023917,2]
[342556728,1731963041424,-500.0,0.00023917,2]
[342556730,1731963041434,-500.0,0.00023917,2]
[342556732,1731963041443,-500.0,0.00023973,2]
[342556734,1731963041452,-500.22012842,0.00023973,2]
[342556736,1731963041461,-201.95337546,0.00023973,2]
[342556738,1731963041471,-417.54926709,0.00023973,2]
[342556740,1731963041480,-500.0,0.00023973,2]
[342556742,1731963041490,-386.95,0.0002417,2]
[342556744,1731963041500,-1799.62,0.0002417,2]
[342556746,1731963041509,-500.0,0.0002417,2]
[342556748,1731963041519,-500.0,0.00024171,2]
[342556750,1731963041528,-587.29,0.00024171,2]
[342556752,1731963041539,-641.77,0.00024171,2]
[342556754,1731963041549,-990.74,0.00024171,2]
[342556756,1731963041558,-1273.25,0.00024171,2]
[342556758,1731963041568,-500.0,0.00024172,2]
[342556760,1731963041577,-500.0,0.00024172,2]
[342556762,1731963041587,-5000.0,0.00024181,2]
[342556763,1731963041596,-500.0,0.00024188,2]
[342556765,1731963041606,-500.0,0.00024188,2]
[342556767,1731963041617,-500.0,0.00024188,2]
[342556769,1731963041626,-539.71634382,0.00024188,2]
[342556771,1731963041635,-500.0,0.00024188,2]
[342556773,1731963041645,-160.03975228,0.00024188,2]
[342556775,1731963041655,-500.0,0.00024188,2]
[342556777,1731963041667,-500.0,0.00024188,2]
[342556779,1731963041676,-500.0,0.00024188,2]
[342556781,1731963041685,-500.0,0.00024188,2]
[342556783,1731963041695,-500.0,0.00024188,2]
[342556785,1731963041704,-500.0,0.00024188,2]
[342556787,1731963041714,-500.0,0.00024188,2]
[342556789,1731963041723,-500.0,0.00024188,2]
[342556791,1731963041733,-500.0,0.00024188,2]
[342556793,1731963041742,-500.0,0.00024188,2]
[342556795,1731963041751,-500.0,0.00024188,2]
[342556797,1731963041761,-500.0,0.00024188,2]
[342556798,1731963041770,-500.0,0.00024188,2]
[342556799,1731963041779,-500.0,0.00024188,2]
[342556800,1731963041789,-500.0,0.00024188,2]
[342556801,1731963041799,-500.0,0.00024188,2]
[342556802,1731963041808,-205.71311279,0.00024188,2]
[342556803,1731963041818,-500.0,0.00024188,2]
[342556804,1731963041827,-500.0,0.00024188,2]
[342556805,1731963041836,-500.0,0.00024188,2]
[342556806,1731963041845,-500.0,0.00024188,2]
[342556807,1731963041855,-500.0,0.00024188,2]
[342556808,1731963041985,-500.0,0.00024188,2]
[342556809,1731963041996,-500.0,0.00024188,2]
[342556810,1731963042007,-501.99962966,0.00024188,2]
[342556811,1731963042018,-500.0,0.00024188,2]
[342556812,1731963042027,-500.0,0.00024188,2]
[342556813,1731963042036,-500.0,0.00024188,2]
[342556814,1731963042046,-500.0,0.00024188,2]
[342556815,1731963042058,-631.7,0.00024188,2]
[342556816,1731963042068,-500.0,0.00024188,2]
[342556817,1731963042077,-500.0,0.00024188,2]
[342556818,1731963042087,-500.0,0.00024188,2]
[342556819,1731963042096,-500.0,0.00024188,2]
[342556820,1731963042106,-500.0,0.00024188,2]
[342556821,1731963042115,-379.14,0.00024188,2]
[342556822,1731963042125,-500.0,0.0002419,2]
[342556823,1731963042134,-521.17237936,0.0002419,2]
[342556824,1731963042143,-500.0,0.0002419,2]
[342556825,1731963042153,-532.61,0.0002419,2]
[342556826,1731963042164,-500.0,0.0002419,2]
[342556827,1731963042174,-500.0,0.0002419,2]
[342556828,1731963042183,-500.0,0.0002419,2]
[342556829,1731963042192,-500.0,0.0002419,2]
[342556830,1731963042202,-500.0,0.0002419,2]
[342556831,1731963042211,-500.0,0.0002419,2]
[342556832,1731963042221,-500.0,0.0002419,2]
[342556834,1731963042230,-198.11,0.0002419,2]
[342556835,1731963042240,-500.0,0.0002419,2]
[342556836,1731963042249,-500.0,0.0002419,2]
[342556837,1731963042259,-591.08,0.00024191,2]
[342556838,1731963042268,-500.0,0.00024191,2]
[342556839,1731963042278,-500.0,0.00024191,2]
[342556840,1731963042287,-500.0,0.00024191,2]
[342556841,1731963042297,-437.90273317,0.00024191,2]
[342556842,1731963042307,-500.0,0.00024191,2]
[342556843,1731963042317,-279.69,0.00024191,2]
[342556844,1731963042326,-566.76,0.00024191,2]
[342556845,1731963042336,-362.31410435,0.00024191,2]
[342556846,1731963042345,-500.0,0.00024191,2]
[342556847,1731963042355,-166.309838,0.00024224,2]
[342556848,1731963042364,-326.91875171,0.00024247,2]
[342556849,1731963042374,-501.41789002,0.00024258,2]
[342556850,1731963042383,-467.81359663,0.00024258,2]
[342556851,1731963042393,-234.38798354,0.00024397,2]
[342556852,1731963042403,-1002.89792129,0.00024441,2]
[342556853,1731963042417,-506.19413605,0.00024441,2]
[342556854,1731963042427,-1799.62,0.00024444,2]
[342556855,1731963042443,-500.0,0.00024444,2]
[342556856,1731963042452,-185.41,0.00024445,2]
[342556857,1731963042462,-587.29,0.00024445,2]
[342556858,1731963042472,-641.77,0.00024445,2]
[342556859,1731963042482,-990.74,0.00024445,2]
[342556860,1731963042491,-1273.25,0.00024445,2]
[342556861,1731963042501,-500.0,0.00024446,2]
[342556863,1731963042511,-511.68763058,0.00024446,2]
[342556864,1731963042521,-500.0,0.00024462,2]
[342556866,1731963042531,-279.6383678,0.00024462,2]
[342556868,1731963042540,-500.0,0.00024462,2]
[342556870,1731963042551,-500.0,0.00024462,2]
[342556872,1731963042561,-500.0,0.00024462,2]
[342556874,1731963042571,-500.0,0.00024462,2]
[342556876,1731963042581,-500.0,0.00024462,2]
[342556878,1731963042591,-500.0,0.00024462,2]
[342556880,1731963042601,-500.0,0.00024462,2]
[342556882,1731963042612,-500.0,0.00024462,2]
[342556884,1731963042622,-500.0,0.00024462,2]
[342556886,1731963042632,-500.0,0.00024462,2]
[342556888,1731963042642,-500.0,0.00024462,2]
[342556890,1731963042652,-470.96296615,0.00024462,2]
[342556892,1731963042664,-500.0,0.00024462,2]
[342556894,1731963042674,-500.0,0.00024462,2]
[342556896,1731963042683,-500.0,0.00024462,2]
[342556898,1731963042693,-500.0,0.00024462,2]
[342556900,1731963042703,-500.0,0.00024462,2]
[342556902,1731963042712,-500.0,0.00024462,2]
[342556904,1731963042722,-500.0,0.00024462,2]
[342556906,1731963042732,-500.0,0.00024462,2]
[342556908,1731963042741,-500.0,0.00024462,2]
[342556910,1731963042751,-500.0,0.00024462,2]
[342556912,1731963042760,-500.0,0.00024462,2]
[342556914,1731963042769,-414.36589859,0.00024462,2]
[342556916,1731963042779,-232.231081,0.00024462,2]
[342556918,1731963042789,-500.0,0.00024462,2]
[342556920,1731963042798,-500.0,0.00024462,2]
[342556922,1731963042807,-628.73,0.00024462,2]
[342556924,1731963042816,-216.8594944,0.00024462,2]
[342556926,1731963042826,-446.64637604,0.00024462,2]
[342556928,1731963042835,-500.0,0.00024462,2]
[342556930,1731963042844,-634.51,0.00024462,2]
[342556932,1731963042854,-500.0,0.00024462,2]
[342556934,1731963042863,-500.0,0.00024464,2]
[342556936,1731963042873,-205.28,0.00024464,2]
[342556938,1731963042882,-500.0,0.00024464,2]
[342556940,1731963042892,-500.0,0.00024464,2]
[342556942,1731963042901,-500.0,0.00024464,2]
[342556944,1731963042913,-500.0,0.00024464,2]
[342556946,1731963042924,-500.0,0.00024464,2]
[342556948,1731963042934,-500.0,0.00024464,2]
[342556950,1731963042943,-500.0,0.00024464,2]
[342556952,1731963042953,-500.0,0.00024465,2]
[342556953,1731963042963,-500.0,0.00024465,2]
[342556955,1731963042974,-500.0,0.00024465,2]
[342556958,1731963042989,-500.0,0.00024465,2]
[342556959,1731963042999,-500.0,0.00024465,2]
[342556961,1731963043009,-500.0,0.00024465,2]
[342556963,1731963043019,-500.0,0.00024657,2]
[342556965,1731963043030,-160.25718692,0.00024658,2]
[342556968,1731963043040,-7316.51,0.000247,14]
[342556969,1731963043050,-1799.62,0.00024718,2]
[342556972,1731963043061,-500.0,0.00024718,2]
[342556974,1731963043073,-587.29,0.00024719,2]
[342556975,1731963043082,-641.77,0.00024719,2]
[342556978,1731963043092,-990.74,0.00024719,2]
[342556980,1731963043101,-1273.25,0.00024719,2]
[342556982,1731963043111,-500.0,0.0002472,2]
[342556983,1731963043120,-292.59,0.00024736,2]
[342556985,1731963043129,-500.0,0.00024736,2]
[342556987,1731963043139,-500.0,0.00024736,2]
[342556989,1731963043149,-500.0,0.00024736,2]
[342556991,1731963043159,-237.47,0.00024736,2]
[342556993,1731963043172,-500.0,0.00024736,2]
[342556995,1731963043181,-500.0,0.00024736,2]
[342556997,1731963043191,-500.0,0.00024736,2]
[342556999,1731963043201,-500.0,0.00024736,2]
[342557001,1731963043210,-555.18,0.00024736,2]
[342557003,1731963043220,-500.0,0.00024736,2]
[342557005,1731963043230,-486.34,0.00024736,2]
[342557007,1731963043239,-500.0,0.00024736,2]
[342557009,1731963043249,-500.0,0.00024736,2]
[342557011,1731963043259,-623.21,0.00024736,2]
[342557013,1731963043269,-409.67440532,0.00024736,2]
[342557015,1731963043278,-500.0,0.00024736,2]
[342557017,1731963043287,-500.0,0.00024736,2]
[342557020,1731963043297,-500.0,0.00024736,2]
[342557022,1731963043307,-500.0,0.00024736,2]
[342557024,1731963043316,-175.45,0.00024736,2]
[342557026,1731963043326,-410.57,0.00024736,2]
[342557028,1731963043335,-618.56271,0.00024736,7]
[342557030,1731963043344,-618.56271,0.00024736,7]
[342557032,1731963043353,-192.29,0.00024738,2]
[342557034,1731963043363,-500.0,0.00024738,2]
[342557036,1731963043372,-500.0,0.00024738,2]
[342557038,1731963043382,-500.0,0.00024738,2]
[342557040,1731963043391,-500.0,0.00024738,2]
[342557041,1731963043400,-500.0,0.00024738,2]
[342557043,1731963043413,-431.01680035,0.00024738,2]
[342557045,1731963043424,-500.0,0.00024738,2]
[342557048,1731963043434,-151.0,0.00024738,7]
[342557049,1731963043443,-364.59,0.00024739,2]
[342557051,1731963043453,-500.0,0.00024739,2]
[342557053,1731963043462,-500.0,0.00024739,2]
[342557055,1731963043472,-243.29,0.00024739,2]
[342557058,1731963043482,-433.5807005,0.00024739,2]
[342557060,1731963043492,-1255.47502474,0.00024792,2]
[342557062,1731963043502,-851.737026,0.0002492,15]
[342557064,1731963043511,-500.0,0.00024958,2]
[342557065,1731963043520,-500.0,0.00024958,2]
[342557067,1731963043530,-500.0,0.00024958,2]
[342557069,1731963043539,-500.0,0.00024958,2]
[342557072,1731963043549,-500.0,0.00024958,2]
[342557074,1731963043559,-500.0,0.00024958,2]
[342557076,1731963043568,-500.0,0.00024958,2]
[342557078,1731963043577,-500.0,0.00024958,2]
[342557080,1731963043586,-500.0,0.00024958,2]
[342557082,1731963043595,-500.0,0.00024958,2]
[342557084,1731963043605,-500.0,0.00024958,2]
[342557085,1731963043614,-500.0,0.00024958,2]
[342557087,1731963043624,-500.0,0.00024958,2]
[342557089,1731963043633,-500.0,0.00024958,2]
[342557091,1731963043642,-500.0,0.00024958,2]
[342557093,1731963043652,-500.0,0.00024958,2]
[342557095,1731963043665,-500.0,0.00024958,2]
[342557097,1731963043675,-500.0,0.00024958,2]
[342557099,1731963043684,-500.0,0.00024958,2]
[342557101,1731963043694,-500.0,0.00024958,2]
[342557103,1731963043703,-500.0,0.00024958,2]
[342557105,1731963043712,-500.0,0.00024958,2]
[342557107,1731963043721,-546.01893028,0.00024958,2]
[342557109,1731963043731,-151.0,0.00024958,7]
[342557111,1731963043740,-362.321992,0.00024958,7]
[342557113,1731963043749,-362.321992,0.00024958,7]
[342557115,1731963043759,-151.0,0.00024958,7]
[342557117,1731963043768,-151.0,0.00024958,7]
[342557119,1731963043777,-221.081934,0.00024958,7]
[342557121,1731963043786,-221.081934,0.00024958,7]
[342557123,1731963043795,-234.38798354,0.00024978,2]
[342557125,1731963043805,-1799.62,0.00024992,2]
[342557127,1731963043814,-500.0,0.00024992,2]
[342557129,1731963043823,-500.0,0.00024993,2]
[342557131,1731963043832,-587.29,0.00024993,2]
[342557133,1731963043842,-641.77,0.00024993,2]
[342557135,1731963043851,-990.74,0.00024993,2]
[342557137,1731963043860,-1273.25,0.00024993,2]
[342557139,1731963043870,-3802.07232839,0.00025,2]
[342557140,1731963043879,-300.0,0.00025,2]
[342557141,1731963043888,-300.0,0.00025,2]
[342557142,1731963043898,-300.0,0.00025,2]
[342557143,1731963043907,-271.7,0.00025,2]
[342557144,1731963043922,-302.8788636,0.00025,2]
[342557146,1731963043932,-500.0,0.00025002,2]
[342557148,1731963043941,-500.0,0.0002501,2]
[342557150,1731963043951,-500.0,0.0002501,2]
[342557152,1731963043961,-541.06,0.0002501,2]
[342557154,1731963043971,-500.0,0.0002501,2]
[342557156,1731963043983,-269.21,0.0002501,2]
[342557158,1731963043992,-265.6,0.0002501,2]
[342557160,1731963044002,-460.22004252,0.0002501,2]
[342557162,1731963044011,-500.0,0.0002501,2]
[342557164,1731963044021,-500.0,0.0002501,2]
[342557166,1731963044030,-500.0,0.0002501,2]
[342557168,1731963044039,-500.0,0.0002501,2]
[342557170,1731963044048,-549.99,0.0002501,2]
[342557172,1731963044060,-459.14,0.0002501,2]
[342557174,1731963044070,-354.36,0.0002501,2]
[342557176,1731963044079,-500.0,0.00025012,2]
[342557178,1731963044089,-617.48599641,0.00025012,2]
[342557180,1731963044099,-500.0,0.00025012,2]
[342557182,1731963044109,-500.0,0.00025012,2]
[342557184,1731963044119,-500.0,0.00025012,2]
[342557186,1731963044128,-500.0,0.00025012,2]
[342557188,1731963044137,-335.78,0.00025013,2]
[342557190,1731963044147,-500.0,0.00025013,2]
[342557192,1731963044156,-500.0,0.00025033,2]
[342557194,1731963044172,-215.80201128,0.00025042,2]
[342557196,1731963044181,-683.21742102,0.00025042,2]
[342557198,1731963044191,-1000.0,0.00025042,2]
[342557200,1731963044200,-500.0,0.00025186,7]
[342557202,1731963044209,-302.8788636,0.0002525,2]
[342557204,1731963044218,-500.0,0.00025255,2]
[342557207,1731963044228,-1799.62,0.00025266,2]
[342557209,1731963044237,-500.0,0.00025266,2]
[342557211,1731963044246,-500.0,0.00025267,2]
[342557213,1731963044255,-587.29,0.00025267,2]
[342557215,1731963044264,-641.77,0.00025267,2]
[342557217,1731963044274,-990.74,0.00025267,2]
[342557231,1731963044393,-1273.25,0.00025267,2]
[342557233,1731963044403,-520.1716322,0.00025284,2]
[342557235,1731963044416,-500.0,0.00025284,2]
[342557237,1731963044427,-345.85,0.00025284,2]
[342557239,1731963044437,-500.0,0.00025284,2]
[342557241,1731963044447,-500.0,0.00025284,2]
[342557243,1731963044456,-228.66,0.00025284,2]
[342557245,1731963044466,-500.0,0.00025286,2]
[342557247,1731963044475,-452.93102906,0.00025286,2]
[342557249,1731963044485,-242.99226126,0.00025286,2]
[342557251,1731963044495,-500.0,0.00025286,2]
[342557253,1731963044504,-500.0,0.00025286,2]
[342557255,1731963044514,-500.0,0.00025286,2]
[342557257,1731963044524,-501.96399516,0.00025342,2]
[342557259,1731963044533,-930.74833264,0.00025342,2]
[342557261,1731963044542,-302.8788636,0.000255,2]
[342557263,1731963044551,-1799.62,0.0002554,2]
[342557265,1731963044561,-500.0,0.0002554,2]
[342557267,1731963044570,-500.0,0.00025541,2]
[342557269,1731963044579,-587.29,0.00025541,2]
[342557271,1731963044589,-641.77,0.00025541,2]
[342557273,1731963044600,-990.74,0.00025541,2]
[342557275,1731963044610,-1273.25,0.00025541,2]
[342557277,1731963044620,-500.0,0.00025558,2]
[342557279,1731963044629,-500.0,0.00025558,2]
[342557281,1731963044639,-251.26,0.00025558,2]
[342557283,1731963044648,-234.38798354,0.00025558,2]
[342557285,1731963044657,-500.0,0.0002556,2]
[342557287,1731963044668,-500.0,0.0002556,2]
[342557289,1731963044678,-500.0,0.0002556,2]
[342557291,1731963044688,-601.41707022,0.0002556,2]
[342557293,1731963044698,-302.8788636,0.0002575,2]
[342557295,1731963044707,-1799.62,0.00025814,2]
[342557297,1731963044717,-500.0,0.00025814,2]
[342557299,1731963044727,-500.0,0.00025815,2]
[342557301,1731963044736,-587.29,0.00025815,2]
[342557304,1731963044746,-641.77,0.00025815,2]
[342557306,1731963044756,-990.74,0.00025815,2]
[342557308,1731963044765,-1273.25,0.00025815,2]
[342557310,1731963044775,-412.89,0.00025832,2]
[342557312,1731963044784,-378.95,0.00025832,2]
[342557314,1731963044794,-500.0,0.00025834,2]
[342557316,1731963044803,-500.0,0.00025834,2]
[342557318,1731963044814,-500.0,0.00025834,2]
[342557320,1731963044824,-1255.47502474,0.00025854,2]
[342557322,1731963044834,-3200.0,0.00025864,2]
[342557324,1731963044843,-151.0,0.00025864,2]
[342557326,1731963044852,-4238.43,0.000259,14]
[342557327,1731963044862,-398.795793,0.000259,7]
[342557329,1731963044872,-398.795793,0.000259,7]
[342557331,1731963044881,-151.0,0.000259,7]
[342557333,1731963044891,-151.0,0.000259,7]
[342557335,1731963044900,-1002.0,0.00026,31]
[342557337,1731963044911,-300.0,0.00026,2]
[342557339,1731963044922,-302.8788636,0.00026,2]
[342557341,1731963044931,-1799.62,0.00026088,2]
[342557343,1731963044940,-500.0,0.00026088,2]
[342557345,1731963044950,-500.0,0.00026089,2]
[342557347,1731963044960,-587.29,0.00026089,2]
[342557349,1731963044971,-641.77,0.00026089,2]
[342557351,1731963044982,-990.74,0.00026089,2]
[342557353,1731963044992,-1273.25,0.00026089,2]
[342557356,1731963045002,-500.0,0.00026108,2]
[342557358,1731963045013,-500.0,0.00026108,2]
[342557360,1731963045023,-155.10161703,0.00026137,120]
[342557362,1731963045032,-234.38798354,0.00026139,2]
[342557364,1731963045042,-454.3182954,0.0002625,4]
[342557366,1731963045053,-329.0,0.00026262,2]
[342557368,1731963045063,-407.29,0.000263,7]